fUSD/lending_fUSD_20240814
["ID","MTS","AMOUNT","RATE_DAILY","PERIOD"]
[334807285,1723602651962,-500.0,0.00013698,2]
[334807286,1723602651971,-1245.15,0.00013698,2]
[334807287,1723602651980,-1790.46,0.00013698,2]
[334807288,1723602651990,-500.0,0.00013698,2]
[334807289,1723602651999,-500.0,0.00013698,2]
[334807290,1723602652009,-500.0,0.00013698,2]
[334807291,1723602652018,-500.0,0.00013698,2]
[334807292,1723602652028,-500.0,0.00013698,2]
[334807293,1723602652038,-500.0,0.00013698,2]
[334807294,1723602652047,-500.0,0.00013698,2]
[334807295,1723602652057,-500.0,0.00013698,2]
[334807296,1723602652066,-934.76,0.00013698,2]
[334807297,1723602652075,-10163.08,0.00013698,2]
[334807298,1723602652085,-500.0,0.00013698,2]
[334807299,1723602652094,-500.0,0.00013698,2]
[334807300,1723602652104,-628.92837429,0.00013698,2]
[334807301,1723602652113,-500.0,0.00013698,2]
[334807302,1723602652123,-500.0,0.00013698,2]
[334807303,1723602652133,-500.0,0.00013698,2]
[334807304,1723602652142,-500.0,0.00013698,2]
[334807305,1723602652152,-500.0,0.00013698,2]
[334807306,1723602652163,-825.8,0.00013698,2]
[334807307,1723602652173,-338.78154166,0.00013698,2]
[334807308,1723602652182,-1989.65,0.00013698,2]
[334807309,1723602652192,-500.0,0.00013698,2]
[334807310,1723602652202,-644.6,0.00013698,2]
[334807311,1723602652211,-500.0,0.00013698,2]
[334807312,1723602652220,-500.0,0.00013698,2]
[334807313,1723602652230,-627.0,0.00013698,2]
[334807314,1723602652239,-514.61,0.00013698,2]
[334807315,1723602652249,-801.75,0.00013698,2]
[334807316,1723602652258,-500.0,0.00013698,2]
[334807317,1723602652268,-500.0,0.00013698,2]
[334807318,1723602652278,-500.0,0.00013698,2]
[334807319,1723602652287,-500.0,0.00013698,2]
[334807320,1723602652297,-1294.72,0.00013698,2]
[334807321,1723602652306,-500.0,0.00013698,2]
[334807322,1723602652315,-500.0,0.00013698,2]
[334807323,1723602652324,-500.0,0.00013698,2]
[334807324,1723602652334,-954.13,0.00013698,2]
[334807325,1723602652343,-2685.88,0.00013698,2]
[334807326,1723602652352,-500.0,0.00013698,2]
[334807327,1723602652361,-500.0,0.00013698,2]
[334807328,1723602652370,-500.0,0.00013698,2]
[334807329,1723602652379,-500.0,0.00013698,2]
[334807330,1723602652389,-500.0,0.00013698,2]
[334807331,1723602652399,-500.0,0.00013698,2]
[334807332,1723602652409,-500.0,0.00013698,2]
[334807333,1723602652418,-2011.13,0.00013698,2]
[334807334,1723602652428,-778.53,0.00013698,2]
[334807335,1723602652437,-500.0,0.00013698,2]
[334807336,1723602652446,-26187.14,0.00013698,2]
[334807337,1723602652456,-500.0,0.00013698,2]
[334807338,1723602652465,-500.0,0.00013698,2]
[334807339,1723602652475,-500.0,0.00013698,2]
[334807340,1723602652484,-500.0,0.00013698,2]
[334807341,1723602652493,-500.0,0.00013698,2]
[334807342,1723602652503,-1565.1,0.00013698,2]
[334807343,1723602652670,-500.0,0.00013698,2]
[334807344,1723602652697,-979.97,0.00013698,2]
[334807345,1723602652707,-500.0,0.00013698,2]
[334807346,1723602652717,-500.0,0.00013698,2]
[334807347,1723602652727,-500.0,0.00013698,2]
[334807348,1723602652738,-500.0,0.00013698,2]
[334807349,1723602652747,-500.0,0.00013698,2]
[334807350,1723602652756,-511.5,0.00013698,2]
[334807351,1723602652766,-500.0,0.00013698,2]
[334807352,1723602652776,-500.0,0.00013698,2]
[334807353,1723602652785,-500.0,0.00013698,2]
[334807354,1723602652795,-500.0,0.00013698,2]
[334807355,1723602652804,-500.0,0.00013698,2]
[334807356,1723602652813,-779.83,0.00013698,2]
[334807357,1723602652822,-500.0,0.00013698,2]
[334807358,1723602652832,-500.0,0.00013698,2]
[334807359,1723602652842,-797.04,0.00013698,2]
[334807360,1723602652851,-500.0,0.00013698,2]
[334807361,1723602652861,-1454.0,0.00013698,2]
[334807362,1723602652870,-609.57,0.00013698,2]
[334807363,1723602652879,-2259.14,0.00013698,2]
[334807364,1723602652888,-795.11,0.00013698,2]
[334807365,1723602652897,-4482.43,0.00013698,2]
[334807366,1723602652908,-500.0,0.00013698,2]
[334807367,1723602652917,-500.0,0.00013698,2]
[334807368,1723602652926,-500.0,0.00013698,2]
[334807369,1723602652935,-500.0,0.00013698,2]
[334807370,1723602652944,-1650.52,0.00013698,2]
[334807371,1723602652953,-500.0,0.00013698,2]
[334807372,1723602652963,-500.0,0.00013698,2]
[334807373,1723602652972,-500.0,0.00013698,2]
[334807374,1723602652981,-500.0,0.00013698,2]
[334807375,1723602652990,-715.2,0.00013698,2]
[334807376,1723602653000,-500.0,0.00013698,2]
[334807377,1723602653009,-500.0,0.00013698,2]
[334807378,1723602653019,-500.0,0.00013698,2]
[334807379,1723602653029,-500.0,0.00013698,2]
[334807380,1723602653038,-500.0,0.00013698,2]
[334807381,1723602653047,-2216.9,0.00013698,2]
[334807382,1723602653056,-500.0,0.00013698,2]
[334807383,1723602653066,-500.0,0.00013698,2]
[334807384,1723602653075,-792.78,0.00013698,2]
[334807385,1723602653084,-500.0,0.00013698,2]
[334807386,1723602653094,-500.0,0.00013698,2]
[334807387,1723602653103,-500.0,0.00013698,2]
[334807388,1723602653112,-500.0,0.00013698,2]
[334807389,1723602653121,-1246.78,0.00013698,2]
[334807390,1723602653131,-500.0,0.00013698,2]
[334807391,1723602653140,-500.0,0.00013698,2]
[334807392,1723602653149,-607.66,0.00013698,2]
[334807393,1723602653158,-500.0,0.00013698,2]
[334807394,1723602653167,-500.0,0.00013698,2]
[334807395,1723602653176,-7601.99,0.00013698,2]
[334807396,1723602653185,-500.0,0.00013698,2]
[334807397,1723602653195,-500.0,0.00013698,2]
[334807398,1723602653204,-500.0,0.00013698,2]
[334807399,1723602653213,-500.0,0.00013698,2]
[334807400,1723602653224,-500.0,0.00013698,2]
[334807401,1723602653234,-1499.57,0.00013698,2]
[334807402,1723602653244,-500.0,0.00013698,2]
[334807403,1723602653254,-7595.99,0.00013698,2]
[334807404,1723602653263,-1109.29,0.00013698,2]
[334807405,1723602653273,-500.0,0.00013698,2]
[334807406,1723602653283,-1093.97,0.00013698,2]
[334807407,1723602653293,-500.0,0.00013698,2]
[334807408,1723602653302,-500.0,0.00013698,2]
[334807409,1723602653312,-500.0,0.00013698,2]
[334807410,1723602653321,-500.0,0.00013698,2]
[334807411,1723602653331,-640.21,0.00013698,2]
[334807412,1723602653342,-1979.75,0.00013698,2]
[334807413,1723602653352,-500.0,0.00013698,2]
[334807414,1723602653362,-795.87,0.00013698,2]
[334807415,1723602653374,-500.0,0.00013698,2]
[334807416,1723602653383,-500.0,0.00013698,2]
[334807417,1723602653396,-500.0,0.00013698,2]
[334807418,1723602653407,-500.0,0.00013698,2]
[334807419,1723602653418,-6987.91,0.00013698,2]
[334807420,1723602653427,-500.0,0.00013698,2]
[334807421,1723602653437,-12544.0,0.00013698,2]
[334807422,1723602653447,-500.0,0.00013698,2]
[334807423,1723602653459,-1074.64,0.00013698,2]
[334807424,1723602653468,-3076.3,0.00013698,2]
[334807425,1723602653477,-876.78,0.00013698,2]
[334807426,1723602653487,-1523.89,0.00013698,2]
[334807427,1723602653498,-6254.61,0.00013698,2]
[334807428,1723602653507,-500.0,0.00013698,2]
[334807429,1723602653519,-2886.4,0.00013698,2]
[334807430,1723602653530,-500.0,0.00013698,2]
[334807431,1723602653541,-500.0,0.00013698,2]
[334807432,1723602653549,-500.0,0.00013698,2]
[334807433,1723602653560,-500.0,0.00013698,2]
[334807434,1723602653572,-500.0,0.00013698,2]
[334807435,1723602653581,-500.0,0.00013698,2]
[334807436,1723602653590,-537.6,0.00013698,2]
[334807437,1723602653599,-3990.22,0.00013698,2]
[334807438,1723602653608,-500.0,0.00013698,2]
[334807439,1723602653618,-644.11,0.00013698,2]
[334807440,1723602653627,-500.0,0.00013698,2]
[334807441,1723602653636,-500.0,0.00013698,2]
[334807442,1723602653648,-4385.31,0.00013698,2]
[334807443,1723602653659,-2070.52,0.00013698,2]
[334807444,1723602653668,-500.0,0.00013698,2]
[334807445,1723602653677,-500.0,0.00013698,2]
[334807446,1723602653686,-500.0,0.00013698,2]
[334807447,1723602653695,-500.0,0.00013698,2]
[334807448,1723602653704,-907.06,0.00013698,2]
[334807449,1723602653713,-632.32,0.00013698,2]
[334807450,1723602653724,-3417.42,0.00013698,2]
[334807451,1723602653735,-500.0,0.00013698,2]
[334807452,1723602653745,-500.0,0.00013698,2]
[334807453,1723602653755,-606.36,0.00013698,2]
[334807454,1723602653764,-500.0,0.00013698,2]
[334807455,1723602653773,-500.0,0.00013698,2]
[334807456,1723602653782,-1174.31,0.00013698,2]
[334807457,1723602653791,-3093.02,0.00013698,2]
[334807458,1723602653800,-500.0,0.00013698,2]
[334807459,1723602653814,-500.0,0.00013698,2]
[334807460,1723602653833,-500.0,0.00013698,2]
[334807461,1723602653849,-1476.98,0.00013698,2]
[334807462,1723602653867,-500.0,0.00013698,2]
[334807463,1723602653885,-2431.69,0.00013698,2]
[334807464,1723602653902,-25529.88,0.00013698,2]
[334807465,1723602653919,-500.0,0.00013698,2]
[334807466,1723602653933,-1089.63,0.00013698,2]
[334807467,1723602653949,-3313.46,0.00013698,2]
[334807468,1723602653968,-500.0,0.00013698,2]
[334807469,1723602653986,-2316.76,0.00013698,2]
[334807470,1723602653999,-500.0,0.00013698,2]
[334807471,1723602654017,-500.0,0.00013698,2]
[334807472,1723602654032,-500.0,0.00013698,2]
[334807473,1723602654048,-500.0,0.00013698,2]
[334807474,1723602654064,-500.0,0.00013698,2]
[334807475,1723602654080,-1403.9,0.00013698,2]
[334807476,1723602654095,-1116.62,0.00013698,2]
[334807477,1723602654113,-500.0,0.00013698,2]
[334807478,1723602654129,-500.0,0.00013698,2]
[334807479,1723602654144,-10332.39,0.00013698,2]
[334807480,1723602654160,-500.0,0.00013698,2]
[334807481,1723602654176,-500.0,0.00013698,2]
[334807482,1723602654193,-500.0,0.00013698,2]
[334807483,1723602654208,-500.0,0.00013698,2]
[334807484,1723602654223,-500.0,0.00013698,2]
[334807485,1723602654239,-500.0,0.00013698,2]
[334807486,1723602654255,-350.17462737,0.00013698,2]
[334807487,1723602654271,-1156.7,0.00013698,2]
[334807488,1723602654291,-1295.75,0.00013698,2]
[334807489,1723602654306,-500.0,0.00013698,2]
[334807490,1723602654321,-513.97185223,0.00013698,2]
[334807491,1723602654336,-2190.08,0.00013698,2]
[334807492,1723602654351,-712.3,0.00013698,2]
[334807493,1723602654366,-1180.44,0.00013698,2]
[334807494,1723602654380,-611.69688035,0.00013698,2]
[334807495,1723602654395,-2790.74,0.00013698,2]
[334807496,1723602654411,-1481.88,0.00013698,2]
[334807497,1723602654425,-2852.89,0.00013698,2]
[334807498,1723602654440,-500.0,0.00013698,2]
[334807499,1723602654455,-500.0,0.00013698,2]
[334807500,1723602654470,-500.0,0.00013698,2]
[334807501,1723602654484,-500.0,0.00013698,2]
[334807502,1723602654499,-1468.97,0.00013698,2]
[334807503,1723602654514,-692.94,0.00013698,2]
[334807504,1723602654529,-500.0,0.00013698,2]
[334807505,1723602654544,-500.0,0.00013698,2]
[334807506,1723602654558,-500.75777761,0.00013698,2]
[334807507,1723602654579,-658.08,0.00013698,2]
[334807508,1723602654594,-500.0,0.00013698,2]
[334807509,1723602654611,-500.0,0.00013698,2]
[334807510,1723602654627,-1230.49,0.00013698,2]
[334807511,1723602654641,-500.0,0.00013698,2]
[334807512,1723602654658,-500.0,0.00013698,2]
[334807513,1723602654674,-552.71,0.00013698,2]
[334807514,1723602654688,-1062.66,0.00013698,2]
[334807515,1723602654704,-500.0,0.00013698,2]
[334807516,1723602654719,-500.0,0.00013698,2]
[334807517,1723602654735,-500.0,0.00013698,2]
[334807518,1723602654751,-7068.77,0.00013698,2]
[334807519,1723602654765,-1349.77,0.00013698,2]
[334807520,1723602654780,-930.74,0.00013698,2]
[334807521,1723602654795,-500.0,0.00013698,2]
[334807522,1723602654810,-500.0,0.00013698,2]
[334807523,1723602654824,-2132.38,0.00013698,2]
[334807524,1723602654839,-500.0,0.00013698,2]
[334807525,1723602654854,-4031.79,0.00013698,2]
[334807526,1723602654869,-500.0,0.00013698,2]
[334807527,1723602654883,-724.01,0.00013698,2]
[334807528,1723602654898,-500.0,0.00013698,2]
[334807529,1723602654913,-500.0,0.00013698,2]
[334807530,1723602654927,-2523.9,0.00013698,2]
[334807531,1723602654943,-500.0,0.00013698,2]
[334807532,1723602654957,-706.89,0.00013698,2]
[334807533,1723602654971,-1884.74,0.00013698,2]
[334807534,1723602654986,-990.05,0.00013698,2]
[334807535,1723602655001,-500.0,0.00013698,2]
[334807536,1723602655016,-500.0,0.00013698,2]
[334807537,1723602655032,-500.0,0.00013698,2]
[334807538,1723602655047,-500.0,0.00013698,2]
[334807539,1723602655061,-500.0,0.00013698,2]
[334807540,1723602655076,-500.0,0.00013698,2]
[334807541,1723602655091,-3879.17,0.00013698,2]
[334807542,1723602655106,-647.23,0.00013698,2]
[334807543,1723602655120,-6233.99,0.00013698,2]
[334807544,1723602655135,-500.0,0.00013698,2]
[334807545,1723602655150,-607.94,0.00013698,2]
[334807546,1723602655165,-926.33,0.00013698,2]
[334807547,1723602655180,-500.0,0.00013698,2]
[334807548,1723602655195,-878.73,0.00013698,2]
[334807549,1723602655210,-500.0,0.00013698,2]
[334807550,1723602655226,-500.0,0.00013698,2]
[334807551,1723602655243,-500.0,0.00013698,2]
[334807552,1723602655258,-500.0,0.00013698,2]
[334807553,1723602655273,-500.0,0.00013698,2]
[334807554,1723602655288,-2629.47,0.00013698,2]
[334807555,1723602655303,-1424.47,0.00013698,2]
[334807556,1723602655319,-927.17,0.00013698,2]
[334807557,1723602655334,-4632.33,0.00013698,2]
[334807558,1723602655349,-1037.87,0.00013698,2]
[334807559,1723602655364,-500.0,0.00013698,2]
[334807560,1723602655379,-500.0,0.00013698,2]
[334807561,1723602655394,-5787.01,0.00013698,2]
[334807562,1723602655410,-500.0,0.00013698,2]
[334807563,1723602655425,-500.0,0.00013698,2]
[334807564,1723602655440,-500.0,0.00013698,2]
[334807565,1723602655455,-1414.86,0.00013698,2]
[334807566,1723602655471,-500.0,0.00013698,2]
[334807567,1723602655488,-500.0,0.00013698,2]
[334807568,1723602655503,-231.15199758,0.00013698,2]
[334807569,1723602655519,-2459.82,0.00013698,2]
[334807570,1723602655535,-500.0,0.00013698,2]
[334807571,1723602655775,-846.86,0.00013698,2]
[334807572,1723602655787,-1118.57,0.00013698,2]
[334807573,1723602655796,-500.0,0.00013698,2]
[334807574,1723602655805,-1007.42,0.00013698,2]
[334807575,1723602655814,-500.0,0.00013698,2]
[334807576,1723602655823,-533.65,0.00013698,2]
[334807577,1723602655833,-1366.17,0.00013698,2]
[334807578,1723602655843,-500.0,0.00013698,2]
[334807579,1723602655852,-2126.16,0.00013698,2]
[334807580,1723602655861,-628.48,0.00013698,2]
[334807581,1723602655870,-500.0,0.00013698,2]
[334807582,1723602655879,-2650.36,0.00013698,2]
[334807583,1723602655888,-500.71403041,0.00013698,2]
[334807584,1723602655897,-1340.59,0.00013698,2]
[334807585,1723602655906,-549.11,0.00013698,2]
[334807586,1723602655915,-5048.53,0.00013698,2]
[334807587,1723602655924,-500.0,0.00013698,2]
[334807588,1723602655933,-500.0,0.00013698,2]
[334807589,1723602655942,-4814.52,0.00013698,2]
[334807590,1723602655951,-500.0,0.00013698,2]
[334807591,1723602655961,-2595.97,0.00013698,2]
[334807592,1723602655970,-500.0,0.00013698,2]
[334807593,1723602655979,-655.57,0.00013698,2]
[334807594,1723602655989,-500.0,0.00013698,2]
[334807595,1723602655998,-1222.33,0.00013698,2]
[334807596,1723602656007,-500.0,0.00013698,2]
[334807597,1723602656017,-500.0,0.00013698,2]
[334807598,1723602656026,-500.42303765,0.00013698,2]
[334807599,1723602656035,-5130.59,0.00013698,2]
[334807600,1723602656045,-500.0,0.00013698,2]
[334807601,1723602656055,-500.0,0.00013698,2]
[334807602,1723602656064,-500.0,0.00013698,2]
[334807603,1723602656074,-1306.43,0.00013698,2]
[334807604,1723602656084,-1355.2,0.00013698,2]
[334807605,1723602656093,-500.0,0.00013698,2]
[334807606,1723602656102,-681.18,0.00013698,2]
[334807607,1723602656111,-793.04,0.00013698,2]
[334807608,1723602656121,-737.26,0.00013698,2]
[334807609,1723602656130,-1542.07,0.00013698,2]
[334807610,1723602656140,-1506.9,0.00013698,2]
[334807611,1723602656149,-500.0,0.00013698,2]
[334807612,1723602656160,-838.4,0.00013698,2]
[334807613,1723602656170,-3456.77,0.00013698,2]
[334807614,1723602656179,-500.0,0.00013698,2]
[334807615,1723602656190,-529.75,0.00013698,2]
[334807616,1723602656199,-1842.77,0.00013698,2]
[334807617,1723602656209,-892.7,0.00013698,2]
[334807618,1723602656219,-500.0,0.00013698,2]
[334807619,1723602656230,-500.0,0.00013698,2]
[334807620,1723602656239,-500.0,0.00013698,2]
[334807621,1723602656249,-2685.39,0.00013698,2]
[334807622,1723602656259,-500.0,0.00013698,2]
[334807623,1723602656268,-500.0,0.00013698,2]
[334807624,1723602656278,-1400.49,0.00013698,2]
[334807625,1723602656288,-500.0,0.00013698,2]
[334807626,1723602656297,-500.0,0.00013698,2]
[334807627,1723602656307,-500.0,0.00013698,2]
[334807628,1723602656316,-1014.58,0.00013698,2]
[334807629,1723602656328,-500.0,0.00013698,2]
[334807630,1723602656338,-2268.59,0.00013698,2]
[334807631,1723602656348,-500.0,0.00013698,2]
[334807632,1723602656357,-500.0,0.00013698,2]
[334807633,1723602656366,-625.17,0.00013698,2]
[334807634,1723602656375,-1121.33,0.00013698,2]
[334807635,1723602656385,-500.0,0.00013698,2]
[334807636,1723602656394,-500.0,0.00013698,2]
[334807637,1723602656404,-500.34181458,0.00013698,2]
[334807638,1723602656414,-550.0,0.00013698,2]
[334807639,1723602656424,-757.02,0.00013698,2]
[334807640,1723602656435,-500.0,0.00013698,2]
[334807641,1723602656446,-500.0,0.00013698,2]
[334807642,1723602656455,-500.0,0.00013698,2]
[334807643,1723602656464,-1058.85,0.00013698,2]
[334807644,1723602656474,-500.0,0.00013698,2]
[334807645,1723602656483,-1058.85,0.00013698,2]
[334807646,1723602656493,-1058.85,0.00013698,2]
[334807647,1723602656502,-500.0,0.00013698,2]
[334807648,1723602656512,-1058.85,0.00013698,2]
[334807649,1723602656521,-893.62,0.00013698,2]
[334807650,1723602656531,-568.09564743,0.00013698,2]
[334807651,1723602656541,-632.51,0.00013698,2]
[334807652,1723602656550,-500.0,0.00013698,2]
[334807653,1723602656560,-500.0,0.00013698,2]
[334807654,1723602656575,-500.0,0.00013698,2]
[334807655,1723602656584,-500.0,0.00013698,2]
[334807656,1723602656594,-2273.0,0.00013698,2]
[334807657,1723602656603,-500.0,0.00013698,2]
[334807658,1723602656613,-2241.44,0.00013698,2]
[334807659,1723602656622,-791.79,0.00013698,2]
[334807660,1723602656632,-909.05,0.00013698,2]
[334807661,1723602656642,-500.0,0.00013698,2]
[334807662,1723602656651,-1191.58,0.00013698,2]
[334807663,1723602656661,-4251.41,0.00013698,2]
[334807664,1723602656670,-771.58,0.00013698,2]
[334807665,1723602656679,-1152.04,0.00013698,2]
[334807666,1723602656689,-500.0,0.00013698,2]
[334807667,1723602656698,-978.61,0.00013698,2]
[334807668,1723602656707,-500.0,0.00013698,2]
[334807669,1723602656716,-500.0,0.00013698,2]
[334807670,1723602656725,-2371.26,0.00013698,2]
[334807671,1723602656735,-500.0,0.00013698,2]
[334807672,1723602656744,-1109.36,0.00013698,2]
[334807673,1723602656753,-2309.24,0.00013698,2]
[334807674,1723602656762,-500.0,0.00013698,2]
[334807675,1723602656771,-500.0,0.00013698,2]
[334807676,1723602656781,-500.0,0.00013698,2]
[334807677,1723602656790,-500.0,0.00013698,2]
[334807678,1723602656799,-500.0,0.00013698,2]
[334807679,1723602656808,-4492.3,0.00013698,2]
[334807680,1723602656817,-592.87,0.00013698,2]
[334807681,1723602656826,-500.0,0.00013698,2]
[334807682,1723602656835,-500.0,0.00013698,2]
[334807683,1723602656844,-500.0,0.00013698,2]
[334807684,1723602656853,-500.0,0.00013698,2]
[334807685,1723602656863,-500.0,0.00013698,2]
[334807686,1723602656872,-500.0,0.00013698,2]
[334807687,1723602656881,-500.0,0.00013698,2]
[334807688,1723602656890,-500.0,0.00013698,2]
[334807689,1723602656899,-610.75,0.00013698,2]
[334807690,1723602656910,-500.0,0.00013698,2]
[334807691,1723602656919,-500.0,0.00013698,2]
[334807692,1723602656928,-1012.99,0.00013698,2]
[334807693,1723602656937,-1570.48,0.00013698,2]
[334807694,1723602656947,-1551.55,0.00013698,2]
[334807695,1723602656956,-1111.41,0.00013698,2]
[334807696,1723602656966,-500.0,0.00013698,2]
[334807697,1723602656975,-1186.85,0.00013698,2]
[334807698,1723602656984,-1463.47,0.00013698,2]
[334807699,1723602656994,-519.23,0.00013698,2]
[334807700,1723602657003,-500.0,0.00013698,2]
[334807701,1723602657012,-500.0,0.00013698,2]
[334807702,1723602657022,-1054.98,0.00013698,2]
[334807703,1723602657032,-500.0,0.00013698,2]
[334807704,1723602657041,-500.0,0.00013698,2]
[334807705,1723602657051,-500.0,0.00013698,2]
[334807706,1723602657060,-500.0,0.00013698,2]
[334807707,1723602657070,-713.26,0.00013698,2]
[334807708,1723602657079,-500.0,0.00013698,2]
[334807709,1723602657089,-5056.45,0.00013698,2]
[334807710,1723602657099,-696.74,0.00013698,2]
[334807711,1723602657108,-500.0,0.00013698,2]
[334807712,1723602657117,-500.0,0.00013698,2]
[334807713,1723602657127,-500.0,0.00013698,2]
[334807714,1723602657136,-500.0,0.00013698,2]
[334807715,1723602657145,-500.0,0.00013698,2]
[334807716,1723602657155,-1006.3,0.00013698,2]
[334807717,1723602657164,-500.0,0.00013698,2]
[334807718,1723602657173,-652.77,0.00013698,2]
[334807719,1723602657182,-260.85305174,0.00013698,2]
[334807720,1723602657191,-544.47,0.00013698,2]
[334807721,1723602657201,-500.0,0.00013698,2]
[334807722,1723602657210,-500.0,0.00013698,2]
[334807723,1723602657219,-500.0,0.00013698,2]
[334807724,1723602657228,-17330.3,0.00013698,2]
[334807725,1723602657238,-500.0,0.00013698,2]
[334807726,1723602657247,-500.0,0.00013698,2]
[334807727,1723602657256,-593.16,0.00013698,2]
[334807728,1723602657265,-1148.42,0.00013698,2]
[334807729,1723602657275,-806.26,0.00013698,2]
[334807730,1723602657284,-7481.23,0.00013698,2]
[334807731,1723602657293,-500.0,0.00013698,2]
[334807732,1723602657303,-500.0,0.00013698,2]
[334807733,1723602657312,-500.0,0.00013698,2]
[334807734,1723602657322,-500.0,0.00013698,2]
[334807735,1723602657331,-500.0,0.00013698,2]
[334807736,1723602657341,-513.11,0.00013698,2]
[334807737,1723602657350,-3687.62,0.00013698,2]
[334807738,1723602657359,-560.56,0.00013698,2]
[334807739,1723602657368,-2564.91,0.00013698,2]
[334807740,1723602657377,-816.57,0.00013698,2]
[334807741,1723602657387,-679.39,0.00013698,2]
[334807742,1723602657396,-507.96,0.00013698,2]
[334807743,1723602657405,-1744.55,0.00013698,2]
[334807744,1723602657414,-500.0,0.00013698,2]
[334807745,1723602657423,-500.0,0.00013698,2]
[334807746,1723602657432,-7945.01,0.00013698,2]
[334807747,1723602657441,-500.0,0.00013698,2]
[334807748,1723602657450,-500.0,0.00013698,2]
[334807749,1723602657460,-2077.97,0.00013698,2]
[334807750,1723602657469,-252.67020598,0.00013698,2]
[334807751,1723602657479,-1544.91,0.00013698,2]
[334807752,1723602657488,-500.0,0.00013698,2]
[334807753,1723602657497,-500.0,0.00013698,2]
[334807754,1723602657506,-500.0,0.00013698,2]
[334807755,1723602657516,-500.0,0.00013698,2]
[334807756,1723602657525,-522.37,0.00013698,2]
[334807757,1723602657535,-500.0,0.00013698,2]
[334807758,1723602657544,-500.0,0.00013698,2]
[334807759,1723602657553,-500.0,0.00013698,2]
[334807760,1723602657563,-500.0,0.00013698,2]
[334807761,1723602657576,-2838.27,0.00013698,2]
[334807762,1723602657585,-4893.01,0.00013698,2]
[334807763,1723602657595,-2055.16,0.00013698,2]
[334807764,1723602657604,-500.0,0.00013698,2]
[334807765,1723602657614,-500.0,0.00013698,2]
[334807766,1723602657624,-500.0,0.00013698,2]
[334807767,1723602657633,-2777.73,0.00013698,2]
[334807768,1723602657642,-500.0,0.00013698,2]
[334807769,1723602657654,-500.0,0.00013698,2]
[334807770,1723602657664,-500.0,0.00013698,2]
[334807771,1723602657673,-500.0,0.00013698,2]
[334807772,1723602657682,-500.0,0.00013698,2]
[334807773,1723602657692,-540.02,0.00013698,2]
[334807774,1723602657701,-699.99,0.00013698,2]
[334807775,1723602657710,-500.0,0.00013698,2]
[334807776,1723602657719,-500.0,0.00013698,2]
[334807777,1723602657728,-500.0,0.00013698,2]
[334807778,1723602657737,-2100.88,0.00013698,2]
[334807779,1723602657747,-500.0,0.00013698,2]
[334807780,1723602657756,-1497.09,0.00013698,2]
[334807781,1723602657765,-500.0,0.00013698,2]
[334807782,1723602657774,-4440.62,0.00013698,2]
[334807783,1723602657783,-687.1,0.00013698,2]
[334807784,1723602657793,-3296.44,0.00013698,2]